bitfinex-derivatives/quotes_SOLF0:USTF0_20250630
["timestamp","ask_amount","ask_price","bid_price","bid_amount"]
[1751299743582,6.343,157.62,157.58,6.344]
[1751299743785,548.56,157.66,157.56,5.50892063]
[1751299743981,554.06892063,157.66,157.55,44.8449]
[1751299744495,6.3434,157.61,157.57,6.3447]
[1751299744790,5.50892063,157.65,157.55,2.1249]
[1751299745193,5.50892063,157.65,157.57,6.3445]
[1751299745483,5.50892063,157.65,157.55,7.63382063]
[1751299745687,6.3433,157.61,157.57,6.3447]
[1751299746090,6.3433,157.61,157.55,7.63382063]
[1751299746384,6.3425,157.63,157.58,6.3444]
[1751299746586,6.3425,157.63,157.55,7.63382063]
[1751299746784,42.72,157.68,157.59,5.50892063]
[1751299747089,42.72,157.68,157.6,42.72]
[1751299747390,6.3419,157.65,157.61,6.3431]
[1751299747786,42.72,157.68,157.6,42.72]
[1751299748090,42.72,157.68,157.61,6.3431]
[1751299748281,42.72,157.68,157.6,42.72]
[1751299748480,42.72,157.68,157.62,6.3424]
[1751299748481,6.3414,157.66,157.62,6.3424]
[1751299748888,6.3414,157.66,157.6,42.72]
[1751299749488,6.3408,157.67,157.6,42.72]
[1751299749688,6.3408,157.67,157.61,5.50892063]
[1751299749889,4.4324,157.69,157.61,5.50892063]
[1751299750100,48.22892063,157.72,157.65,6.3413]
[1751299750494,4.331,157.73,157.66,6.341]
[1751299750691,4.331,157.73,157.63,5.50892063]
[1751299751191,4.331,157.73,157.65,5.50892063]
[1751299751389,6.3389,157.72,157.66,42.7]
[1751299751592,6.3389,157.72,157.68,6.3401]
[1751299751793,4.331,157.73,157.68,6.3401]
[1751299751995,4.331,157.73,157.67,42.7]
[1751299752293,4.331,157.73,157.66,42.7]
[1751299752492,79.61274788,157.77,157.66,42.7]
[1751299752693,9.89422063,157.76,157.67,6.3405]
[1751299753088,6.3396,157.7,157.67,6.3405]
[1751299753388,9.89422063,157.76,157.66,48.20892063]
[1751299753593,5.50892063,157.75,157.66,42.7]
[1751299754294,6.338,157.74,157.69,5.50892063]
[1751299754490,4.3853,157.76,157.69,5.50892063]
[1751299754891,6.338,157.74,157.7,6.3393]
[1751299755092,6.338,157.74,157.69,5.50892063]
[1751299755290,4.3853,157.79,157.69,5.50892063]
[1751299755494,6.3379,157.74,157.71,6.3388]
[1751299755688,4.3853,157.79,157.69,5.50892063]
[1751299755888,6.3386,157.73,157.69,11.84872063]
[1751299756086,5.50892063,157.78,157.69,11.84872063]
[1751299756494,5.50892063,157.74,157.63,47.58892063]
[1751299757000,5.50892063,157.7,157.63,42.08]
[1751299757497,5.50892063,157.7,157.63,48.4222]
[1751299757698,5.50892063,157.7,157.63,42.08]
[1751299757885,6.3419,157.64,157.63,42.08]
[1751299758092,5.50892063,157.68,157.59,590.42]
[1751299758296,5.50892063,157.66,157.59,590.42]
[1751299758795,5.50892063,157.66,157.59,42.08]
[1751299759197,5.50892063,157.64,157.59,42.08]
[1751299759392,5.50892063,157.67,157.59,42.08]
[1751299759591,6.3426,157.63,157.59,42.08]
[1751299760197,9.66022474,157.69,157.59,42.08]
[1751299760692,5.50892063,157.65,157.59,42.08]
[1751299762794,6.3435,157.6,157.59,42.08]
[1751299763088,6.3435,157.6,157.56,8.4741]
[1751299763497,5.50892063,157.63,157.56,8.4741]
[1751299764097,6.3438,157.6,157.57,6.3448]
[1751299764397,42.08,157.7,157.56,2.1292]
[1751299764594,5.50892063,157.64,157.56,2.1292]
[1751299764898,5.50892063,157.64,157.57,6.3447]
[1751299765094,6.3436,157.6,157.57,6.3447]
[1751299765903,6.3433,157.61,157.58,6.3443]
[1751299766099,5.50892063,157.64,157.56,2.1292]
[1751299766299,6.3435,157.61,157.56,2.1292]
[1751299766500,6.3435,157.61,157.57,6.3446]
[1751299766800,6.3438,157.6,157.56,2.1292]
[1751299766991,6.3438,157.6,157.56,8.474]
[1751299767391,6.3438,157.6,157.56,2.1292]
[1751299767603,5.50892063,157.64,157.56,2.1292]
[1751299767793,5.50892063,157.6,157.52,2.0748]
[1751299767998,139.48,157.69,157.5,2.2229]
[1751299767999,5.50892063,157.58,157.5,2.2229]
[1751299768200,5.50892063,157.54,157.45,4.3822]
[1751299768397,5.50892063,157.52,157.45,4.3822]
[1751299768794,5.50892063,157.54,157.45,4.3822]
[1751299768993,5.50892063,157.54,157.48,6.348]
[1751299769197,5.50892063,157.54,157.45,4.3822]
[1751299769491,5.50892063,157.56,157.46,5.50892063]
[1751299769702,6.3465,157.53,157.5,6.3474]
[1751299770194,6.3461,157.54,157.51,6.3471]
[1751299770396,42.1,157.58,157.5,42.1]
[1751299770996,42.1,157.58,157.51,6.3469]
[1751299771192,42.1,157.58,157.5,42.1]
[1751299771697,42.1,157.58,157.51,6.3469]
[1751299772399,42.1,157.58,157.5,42.1]
[1751299772400,5.46426343,157.67,157.56,5.46426343]
[1751299772697,5.46426343,157.65,157.57,42.1]
[1751299773001,5.46426343,157.65,157.56,42.1]
[1751299773300,6.3436,157.6,157.56,42.1]
[1751299773506,5.46426343,157.63,157.55,42.1]
[1751299773699,5.46426343,157.64,157.55,42.1]
[1751299773907,5.46467809,157.66,157.55,47.56467809]
[1751299774400,6.343,157.62,157.58,6.3443]
[1751299774600,5.46467809,157.66,157.55,47.56467809]
[1751299775097,6.3431,157.62,157.58,6.3442]
[1751299775302,5.46467809,157.66,157.55,47.56467809]
[1751299775890,6.3438,157.6,157.56,6.345]
[1751299776095,6.3438,157.6,157.55,47.56467809]
[1751299776291,5.46467809,157.63,157.55,42.1]
[1751299776497,6.3446,157.58,157.55,42.1]
[1751299778202,5.46467809,157.66,157.55,47.56467809]
[1751299778502,12.6819,157.67,157.57,6.3448]
[1751299778699,5.46467809,157.66,157.57,5.46467809]
[1751299778902,5.46467809,157.67,157.57,5.46467809]
[1751299779201,6.3424,157.63,157.55,42.1]
[1751299779401,44.3063,157.68,157.59,5.46467809]
[1751299779603,44.3063,157.68,157.6,6.3434]
[1751299779994,44.3063,157.68,157.59,5.46467809]
[1751299780197,49.77097809,157.68,157.6,6.3435]
[1751299780401,49.77097809,157.68,157.59,5.46467809]
[1751299780599,44.3063,157.68,157.57,5.46467809]
[1751299780801,5.46467809,157.67,157.57,5.46467809]
[1751299781303,6.343,157.62,157.58,6.3441]
[1751299781496,5.46467809,157.67,157.57,5.46467809]
[1751299782099,6.3434,157.61,157.58,6.3443]
[1751299782603,49.77097809,157.68,157.57,5.46467809]
[1751299782807,6.343,157.62,157.59,6.3437]
[1751299783006,2.2726,157.69,157.61,5.46467809]
[1751299783206,42.1,157.72,157.63,5.46467809]
[1751299783503,6.3405,157.68,157.64,42.1]
[1751299783700,12.674,157.77,157.64,42.1]
[1751299783701,5.4575333,157.79,157.66,5.4575333]
[1751299784006,7.89012862,157.82,157.67,2.2045]
[1751299784205,5.4575333,157.82,157.72,5.4575333]
[1751299784406,6.3373,157.76,157.72,53.8760333]
[1751299784602,5.45494392,157.8,157.72,42.08]
[1751299784809,5.45494392,157.78,157.72,42.08]
[1751299786603,2.2732,157.81,157.72,42.08]
[1751299787104,6.3377,157.75,157.72,42.08]
[1751299787308,2.2732,157.81,157.72,42.08]
[1751299787901,5.45494392,157.8,157.72,42.08]
[1751299788101,2.2732,157.81,157.72,42.08]
[1751299788304,5.45494392,157.8,157.72,42.08]
[1751299788910,6.338,157.74,157.72,42.08]
[1751299789109,5.45494392,157.8,157.72,42.08]
[1751299789508,6.3383,157.73,157.72,42.08]
[1751299789706,5.45494392,157.8,157.72,42.08]
[1751299790213,5.45494392,157.81,157.72,42.08]
[1751299790703,41.52,157.82,157.72,42.08]
[1751299790903,41.52,157.82,157.72,48.4187]
[1751299791103,5.45494392,157.81,157.72,42.08]
[1751299791608,6.3374,157.76,157.72,48.4186]
[1751299792008,6.3374,157.76,157.72,42.08]
[1751299792309,5.45494392,157.81,157.72,42.08]
[1751299792509,5.45494392,157.79,157.72,42.08]
[1751299793311,5.45494392,157.81,157.72,42.08]
[1751299793707,5.45494392,157.83,157.73,5.45494392]
[1751299793905,5.45494392,157.83,157.73,7.54574392]
[1751299794309,5.45494392,157.83,157.75,6.3372]
[1751299794507,6.3358,157.8,157.74,5.45494392]
[1751299794814,6.3358,157.8,157.75,2.0986]
[1751299795010,6.3358,157.8,157.76,6.3368]
[1751299795201,6.3352,157.81,157.77,41.5]
[1751299795399,6.3352,157.81,157.77,47.8365]
[1751299795598,2.1731,157.85,157.77,41.5]
[1751299795803,6.3359,157.79,157.77,41.5]
[1751299795999,7.62804392,157.85,157.77,47.8365]
[1751299796406,6.3353,157.81,157.77,47.8365]
[1751299796606,7.62804392,157.85,157.77,47.8365]
[1751299796803,2.1731,157.85,157.77,41.5]
[1751299797111,41.5,157.86,157.77,41.5]
[1751299797318,2.1116,157.89,157.78,5.45494392]
[1751299797814,5.45494392,157.88,157.78,5.45494392]
[1751299798008,5.45494392,157.88,157.79,41.5]
[1751299798905,5.45494392,157.88,157.8,6.3352]
[1751299799203,6.3342,157.84,157.8,6.3352]
[1751299799408,5.45494392,157.88,157.79,41.5]
[1751299799606,6.3355,157.8,157.79,41.5]
[1751299799806,5.45494392,157.82,157.75,591.3386]
[1751299800007,5.45494392,157.8,157.68,5.45494392]
[1751299800305,5.45494392,157.78,157.69,41.48]
[1751299800610,8.59536787,157.81,157.74,5.45494392]
[1751299800611,4.16626787,157.81,157.74,5.45494392]
[1751299800810,9.62121179,157.86,157.75,43.6613]
[1751299801006,9.62121179,157.86,157.76,5.45494392]
[1751299801207,6.3354,157.81,157.76,5.45494392]
[1751299801405,9.62121179,157.86,157.76,5.45494392]
[1751299801619,5.45494392,157.84,157.75,45.8629]
[1751299803906,9.62121179,157.89,157.8,41.48]
[1751299804112,4.16626787,157.89,157.83,6.3342]
[1751299804412,45.64626787,157.9,157.81,5.45494392]
[1751299804610,5.45494392,157.89,157.8,41.48]
[1751299804811,9.62121179,157.89,157.8,41.48]
[1751299805005,4.4503,157.93,157.83,5.45494392]
[1751299805207,5.45494392,157.94,157.83,5.45494392]
[1751299805406,5.45494392,157.94,157.84,4.3727]
[1751299805615,9.62695893,157.95,157.85,46.93494392]
[1751299806108,9.62695893,157.95,157.87,6.3326]
[1751299806314,9.62695893,157.95,157.86,5.45494392]
[1751299806511,4.17201501,157.95,157.86,5.45494392]
[1751299806708,4.17201501,157.95,157.88,6.332]
[1751299806909,6.3313,157.91,157.86,5.45494392]
[1751299807108,4.17201501,157.95,157.86,5.45494392]
[1751299807316,4.17201501,157.95,157.88,6.3319]
[1751299807610,5.45494392,157.89,157.76,547.62]
[1751299807809,5.45494392,157.89,157.79,5.45494392]
[1751299808011,5.45494392,157.89,157.77,51.11144392]
[1751299808204,5.45494392,157.89,157.77,45.6565]
[1751299808404,6.335,157.82,157.77,45.6565]
[1751299808609,5.45494392,157.85,157.77,45.6565]
[1751299809204,5.45494392,157.81,157.73,41.46]
[1751299809813,5.45494392,157.8,157.73,41.46]
[1751299810015,6.3371,157.77,157.72,6.3386]
[1751299810211,41.46,157.81,157.7,5.45494392]
[1751299810407,46.91494392,157.81,157.72,5.45494392]
[1751299810811,6.3362,157.79,157.75,6.3373]
[1751299811112,46.91494392,157.81,157.74,41.48]
[1751299811417,46.91494392,157.81,157.74,47.8178]
[1751299811917,6.3366,157.78,157.74,41.48]
[1751299812119,46.91494392,157.81,157.74,41.48]
[1751299812318,46.91494392,157.81,157.74,47.8178]
[1751299812520,12.6657,157.87,157.74,47.8178]
[1751299812521,41.48,157.85,157.74,41.48]
[1751299812721,5.45494392,157.83,157.74,41.48]
[1751299812923,6.3368,157.77,157.74,47.8177]
[1751299813219,5.45494392,157.81,157.74,47.8177]
[1751299813614,41.48,157.85,157.74,41.48]
[1751299813816,5.45494392,157.83,157.74,41.48]
[1751299814110,5.45494392,157.83,157.74,47.8178]
[1751299814522,5.45494392,157.83,157.74,41.48]
[1751299814725,5.45494392,157.83,157.74,47.8178]
[1751299815116,6.3354,157.81,157.74,41.48]
[1751299815317,5.45494392,157.83,157.75,6.3373]
[1751299815720,6.3361,157.79,157.75,6.3373]
[1751299815917,5.45494392,157.81,157.74,41.48]
[1751299816123,5.45494392,157.79,157.74,41.48]
[1751299817026,6.3365,157.78,157.74,47.8177]
[1751299817924,4.1085,157.83,157.74,41.48]
[1751299818119,9.75197224,157.84,157.74,46.93494392]
[1751299818325,9.75197224,157.84,157.75,2.2595]
[1751299818530,9.75197224,157.84,157.77,6.3364]
[1751299818930,6.3353,157.81,157.77,6.3364]
[1751299822127,6.3386,157.73,157.69,6.3396]
[1751299822516,5.45494392,157.76,157.67,5.45494392]
[1751299822714,6.29603274,157.77,157.66,40.96]
[1751299822915,5.45494392,157.76,157.66,46.41494392]
[1751299823226,6.29603274,157.77,157.66,46.41494392]
[1751299824021,5.45494392,157.76,157.66,46.41494392]
[1751299824218,6.29603274,157.77,157.66,46.41494392]
[1751299824420,4.21663274,157.77,157.68,5.45494392]
[1751299824731,7.52684392,157.83,157.72,5.45494392]
[1751299824922,6.3358,157.8,157.77,6.3365]
[1751299825126,4.14084773,157.84,157.74,5.45494392]
[1751299825423,45.10084773,157.85,157.74,5.45494392]
[1751299825924,45.10084773,157.85,157.76,5.45494392]
[1751299826124,6.335,157.82,157.77,2.2643]
[1751299826926,6.335,157.82,157.79,6.3358]
[1751299827131,6.3351,157.81,157.77,2.2643]
[1751299827621,4.14084773,157.83,157.77,2.2643]
[1751299827827,4.14084773,157.82,157.77,2.2643]
[1751299828031,4.14084773,157.84,157.79,6.3358]
[1751299828226,6.3349,157.82,157.79,6.3358]
[1751299828526,4.14084773,157.81,157.78,46.41494392]
[1751299828727,4.14084773,157.88,157.78,46.41494392]
[1751299828923,6.3335,157.85,157.78,46.41494392]
[1751299829127,4.14084773,157.84,157.78,46.41494392]
[1751299829430,8.12653888,157.92,157.8,5.45494392]
[1751299829431,4.14084773,157.88,157.8,5.45494392]
[1751299829727,4.14084773,157.9,157.84,5.45494392]
[1751299829931,4.14084773,157.89,157.85,43.1958]
[1751299830124,4.14084773,157.92,157.85,43.1958]
[1751299830324,4.14084773,157.91,157.85,43.1958]
[1751299830529,10.47184773,157.92,157.85,43.1958]
[1751299830830,4.14084773,157.91,157.89,6.3316]
[1751299831031,4.14084773,157.91,157.85,43.1958]
[1751299831032,4.14084773,157.95,157.85,48.65074392]
[1751299831331,4.14084773,157.94,157.85,48.65074392]
[1751299831527,4.14084773,157.93,157.85,48.65074392]
[1751299831728,4.14084773,157.92,157.86,6.3331]
[1751299832032,4.14084773,157.91,157.85,43.1958]
[1751299832233,4.14084773,157.93,157.85,43.1958]
[1751299832532,4.14084773,157.92,157.86,6.333]
[1751299832736,4.14084773,157.91,157.85,43.1958]
[1751299832924,4.14084773,157.9,157.85,49.5293]
[1751299833130,10.47304773,157.89,157.85,49.5293]
[1751299833325,6.3322,157.89,157.85,49.5293]
[1751299833528,4.14084773,157.92,157.85,43.1958]
[1751299833727,10.47204773,157.91,157.85,48.65074392]
[1751299833937,4.14084773,157.94,157.88,6.3322]
[1751299834128,4.14084773,157.93,157.88,6.3322]
[1751299834337,4.14084773,157.92,157.86,5.45494392]
[1751299834535,4.14084773,157.97,157.88,5.45494392]
[1751299834833,6.3297,157.95,157.89,4.2891]
[1751299835032,4.14084773,157.94,157.9,40.94]
[1751299835229,4.14084773,157.97,157.9,46.39494392]
[1751299835425,4.14084773,157.96,157.9,46.39494392]
[1751299835636,4.14084773,158.01,157.92,5.45494392]
[1751299835938,4.14084773,158.0,157.95,6.3292]
[1751299836124,4.14084773,157.99,157.94,46.39494392]
[1751299836323,2.2168,158.07,157.96,5.45494392]
[1751299836535,2.2168,158.07,157.94,40.94]
[1751299836536,6.3262,158.04,158.0,6.3272]
[1751299836835,2.2168,158.07,157.99,40.94]
[1751299837539,7.67174392,158.07,157.99,40.94]
[1751299838030,6.326,158.04,157.99,40.94]
[1751299838228,40.94,158.09,157.99,40.94]
[1751299838626,2.2639,158.1,157.99,50.02427793]
[1751299838824,9.08427793,158.09,158.0,40.92]
[1751299839035,6.3261,158.04,158.0,40.92]
[1751299839228,11.34817793,158.1,158.0,40.92]
[1751299839629,9.08427793,158.07,157.93,2.0866]
[1751299839831,9.08427793,158.07,157.94,50.00427793]
[1751299840132,50.00427793,158.09,157.97,9.08427793]
[1751299840438,11.18857793,158.12,157.97,9.08427793]
[1751299840638,11.18857793,158.12,157.99,9.08427793]
[1751299840833,11.18857793,158.12,158.01,6.3267]
[1751299841134,6.3246,158.08,158.0,40.92]
[1751299841336,11.18857793,158.12,158.0,40.92]
[1751299841830,11.18857793,158.12,158.01,2.2161]
[1751299842429,2.1043,158.12,158.01,2.2161]
[1751299842636,2.1043,158.12,158.02,2.2296]
[1751299843130,3.96834046,158.14,158.02,2.2296]
[1751299843336,6.3228,158.12,158.04,9.08427793]
[1751299843534,2.1694,158.18,158.07,6.3244]
[1751299843731,2.1694,158.18,158.05,40.92]
[1751299843732,9.08427793,158.17,158.05,40.92]
[1751299843934,2.1694,158.18,158.05,40.92]
[1751299844230,3.96338586,158.19,158.12,9.08427793]
[1751299844529,9.08427793,158.22,158.11,40.9]
[1751299844727,9.08427793,158.22,158.14,6.3218]
[1751299844924,9.08427793,158.22,158.12,40.9]
[1751299845336,9.08427793,158.2,158.12,40.9]
[1751299845833,49.52427793,158.2,158.12,40.9]
[1751299846229,40.44,158.2,158.12,40.9]
[1751299846634,6.3204,158.18,158.12,40.9]
[1751299846836,9.08427793,158.23,158.13,2.1466]
[1751299847026,13.06983083,158.23,158.13,2.1466]
[1751299847431,9.08427793,158.2,158.13,2.1466]
[1751299847629,40.42,158.23,158.13,2.1466]
[1751299847630,6.3218,158.15,158.13,2.1466]
[1751299847833,9.08427793,158.2,158.13,2.1466]
[1751299848032,9.08427793,158.2,158.12,40.9]
[1751299848228,6.3223,158.13,158.12,40.9]
[1751299848828,6.3233,158.11,158.09,546.9]
[1751299849028,9.08427793,158.17,158.09,546.9]
[1751299849535,13.26387793,158.17,158.08,40.42]
[1751299849834,19.78712983,158.17,158.08,40.42]
[1751299850031,6.3233,158.11,158.08,40.42]
[1751299850832,9.08427793,158.14,158.01,546.72]
[1751299851038,9.08427793,158.14,158.04,40.42]
[1751299851238,6.3247,158.08,158.04,40.42]
[1751299851439,40.42,158.13,158.04,40.42]
[1751299851833,6.3242,158.09,158.04,40.42]
[1751299852139,40.42,158.13,158.04,40.42]
[1751299853237,6.4442,158.17,158.04,40.42]
[1751299853435,4.1796,158.17,158.06,9.08427793]
[1751299853635,6.3214,158.16,158.06,9.08427793]
[1751299853830,2.0777,158.17,158.07,9.08427793]
[1751299854234,2.0777,158.17,158.1,6.3232]
[1751299854235,6.3215,158.15,158.1,6.3232]
[1751299854438,6.3215,158.15,158.11,40.42]
[1751299854641,9.08427793,158.17,158.11,40.42]
[1751299854944,9.08427793,158.14,158.04,40.42]
[1751299855134,42.5963,158.16,158.04,40.42]
[1751299855135,51.68057793,158.16,158.04,40.42]
[1751299855541,51.68057793,158.16,158.06,9.08427793]
[1751299855736,42.5963,158.16,158.06,9.08427793]
[1751299855939,6.3226,158.13,158.06,9.08427793]
[1751299856133,42.5963,158.16,158.06,9.08427793]
[1751299856342,6.3221,158.14,158.09,6.3235]
[1751299856540,42.5963,158.16,158.09,46.7235]
[1751299856741,9.08427793,158.19,158.09,40.4]
[1751299856932,9.08427793,158.19,158.1,6.3232]
[1751299857341,9.08427793,158.19,158.09,40.4]
[1751299857543,6.3225,158.13,158.09,40.4]
[1751299857744,9.08427793,158.19,158.09,40.4]
[1751299858045,6.3218,158.15,158.09,40.4]
[1751299858240,4.28202426,158.2,158.1,2.2179]
[1751299858435,6.3217,158.15,158.11,6.323]
[1751299858640,4.28202426,158.2,158.1,2.2179]
[1751299858641,9.08427793,158.18,158.1,2.2179]
[1751299858942,2.0597,158.17,158.09,40.4]
[1751299859143,4.3116,158.17,158.09,40.4]
[1751299859342,4.3116,158.17,158.03,11.17157793]
[1751299859544,4.3116,158.17,158.04,40.4]
[1751299859842,5.43007022,158.16,158.05,5.43007022]
[1751299860435,5.43007022,158.16,158.06,40.4]
[1751299860644,2.0597,158.17,158.06,40.4]
[1751299860833,48.08197022,158.21,158.11,5.43007022]
[1751299861039,6.3203,158.18,158.13,6.322]
[1751299861243,48.08197022,158.21,158.11,45.83007022]
[1751299861244,5.43007022,158.19,158.12,2.0873]
[1751299861542,6.3213,158.16,158.12,2.0873]
[1751299861946,5.43007022,158.15,158.02,3.9957]
[1751299862242,40.4,158.42,158.14,5.42932456]
[1751299862438,5.42932456,158.29,158.18,5.42932456]
[1751299862638,5.42932456,158.29,158.19,6.3196]
[1751299862840,5.42932456,158.25,158.15,552.6176]
[1751299863038,5.42932456,158.28,158.16,5.42932456]
[1751299863340,2.2678,158.31,158.18,5.42932456]
[1751299863643,5.42932456,158.31,158.2,5.42932456]
[1751299863846,2.092,158.32,158.21,40.4]
[1751299864241,42.492,158.32,158.21,40.4]
[1751299864744,42.492,158.32,158.23,9.05765424]
[1751299864938,6.314,158.34,158.28,6.3163]
[1751299865144,4.2044,158.38,158.26,49.43765424]
[1751299865746,4.2044,158.38,158.15,559.0627]
[1751299865747,9.05765424,158.35,158.15,559.0627]
[1751299865949,9.05765424,158.32,158.2,9.05765424]
[1751299866242,9.05765424,158.31,158.18,2.1221]
[1751299866447,9.05765424,158.28,158.18,2.1221]
[1751299866647,49.43765424,158.28,158.18,2.1221]
[1751299866843,49.44398365,158.28,158.18,2.1221]
[1751299867147,49.44398365,158.28,158.18,8.4423]
[1751299867343,9.06398365,158.25,158.07,546.28]
[1751299867543,40.38,158.26,158.14,9.06398365]
[1751299867745,40.38,158.26,158.15,40.38]
[1751299868045,9.06398365,158.25,158.15,40.38]
[1751299868250,2.1356,158.29,158.15,49.44398365]
[1751299868847,2.1356,158.29,158.18,6.3202]
[1751299869037,2.1356,158.29,158.15,49.44398365]
[1751299869239,6.3172,158.26,158.15,49.44398365]
[1751299869439,2.1356,158.29,158.18,9.06398365]
[1751299869842,77.68210609,158.39,158.16,1.837]
[1751299869843,49.42773926,158.42,158.28,9.04773926]
[1751299870046,2.1569,158.4,158.29,42.5305]
[1751299870242,2.1569,158.4,158.29,44.6303]
[1751299870443,9.04773926,158.48,158.34,9.04773926]
[1751299870746,9.04773926,158.45,158.3,1.837]
[1751299871049,42.5369,158.47,158.31,40.38]
[1751299871050,9.04773926,158.42,158.31,40.38]
[1751299871250,9.04773926,158.41,158.3,42.197]
[1751299871451,9.04773926,158.42,158.3,42.197]
[1751299871849,11.26643926,158.42,158.3,42.197]
[1751299872062,9.04773926,158.39,158.3,40.36]
[1751299872244,9.04773926,158.4,158.3,40.36]
[1751299872445,6.313,158.37,158.31,6.3147]
[1751299872652,2.1233,158.39,158.3,40.36]
[1751299872850,42.4833,158.39,158.3,40.36]
[1751299873151,9.04773926,158.37,158.3,40.36]
[1751299873647,9.04773926,158.37,158.24,4.1705]
[1751299873850,4.06686528,158.38,158.25,40.36]
[1751299874051,6.3154,158.31,158.26,6.317]
[1751299875253,4.24405662,158.34,158.25,49.40773926]
[1751299875751,13.29179588,158.34,158.25,40.36]
[1751299876144,6.3167,158.27,158.25,40.36]
[1751299876348,2.1432,158.33,158.25,40.36]
[1751299876750,2.1576,158.32,158.25,40.36]
[1751299877151,2.1576,158.32,158.23,6.318]
[1751299877446,2.1576,158.32,158.21,42.1252]
[1751299877651,9.04773926,158.31,158.21,42.1252]
[1751299877854,2.1576,158.32,158.21,42.1252]
[1751299878352,2.1576,158.32,158.26,6.317]
[1751299878553,2.1576,158.32,158.22,9.04773926]
[1751299878850,40.36,158.35,158.25,9.04773926]
[1751299879051,40.36,158.35,158.29,6.3156]
[1751299879455,6.3142,158.34,158.29,6.3156]
[1751299879654,40.36,158.35,158.26,40.06]
[1751299880058,6.3152,158.31,158.26,46.3768]
[1751299880252,4.08480456,158.34,158.26,46.3768]
[1751299880447,4.08480456,158.34,158.26,40.06]
[1751299880654,9.04773926,158.32,158.21,42.1052]
[1751299880954,2.0866,158.31,158.21,42.1052]
[1751299881154,2.0866,158.31,158.21,48.4242]
[1751299881351,2.2537,158.33,158.21,48.4242]
[1751299881352,4.08480456,158.34,158.22,9.04773926]
[1751299881547,9.04773926,158.33,158.22,40.04]
[1751299881752,6.3175,158.25,158.22,40.04]
[1751299881947,9.04773926,158.3,158.22,40.04]
[1751299882152,13.13254382,158.3,158.22,40.04]
[1751299882348,6.3173,158.26,158.22,40.04]
[1751299882654,13.13254382,158.3,158.22,40.04]
[1751299882957,6.3169,158.27,158.22,46.3586]
[1751299883253,6.3169,158.27,158.19,555.08773926]
[1751299883254,9.04773926,158.27,158.19,546.04]
[1751299883452,42.2035,158.26,158.17,40.06]
[1751299883648,48.50810456,158.26,158.16,48.4733]
[1751299883960,13.13254382,158.25,158.16,48.4733]
[1751299884354,4.08480456,158.25,158.16,42.1523]
[1751299884858,6.3194,158.21,158.16,48.4731]
[1751299885059,4.08480456,158.25,158.16,42.1523]
[1751299885357,4.08480456,158.25,158.17,6.3206]
[1751299885758,4.08480456,158.25,158.16,42.1523]
[1751299885954,6.3194,158.21,158.16,42.1523]
[1751299887257,6.3188,158.22,158.16,42.1523]
[1751299887554,4.08480456,158.25,158.16,51.20003926]
[1751299887760,6.3197,158.2,158.16,57.52093926]
[1751299887953,4.08480456,158.25,158.16,51.20003926]
[1751299888356,6.3189,158.22,158.16,51.20003926]
[1751299888660,4.08480456,158.25,158.16,51.20003926]
[1751299888960,4.08480456,158.25,158.21,6.3189]
[1751299888961,6.3175,158.25,158.21,6.3189]
[1751299889562,6.3179,158.24,158.21,6.3189]
[1751299889758,6.3179,158.24,158.2,40.06]
[1751299890062,6.3176,158.25,158.21,6.3188]
[1751299890556,4.20047744,158.29,158.21,9.06060466]
[1751299890762,2.1143,158.36,158.21,1.8374]
[1751299890964,4.20047744,158.35,158.24,9.06060466]
[1751299891162,15.3753821,158.36,158.25,46.3772]
[1751299891462,4.20047744,158.35,158.25,46.3772]
[1751299891663,49.11647231,158.34,158.21,10.89387231]
[1751299891962,4.20047744,158.33,158.22,40.06]
[1751299892151,40.06,158.34,158.22,40.06]
[1751299892354,6.3158,158.3,158.22,40.06]